bitfinex/quotes_BTCUSD_20260117
["timestamp","ask_amount","ask_price","bid_price","bid_amount"]
[1768669172933,0.01049604,95274.0,95270.0,0.06297838]
[1768669173139,0.01049593,95275.0,95271.0,0.01049637]
[1768669178421,0.01049604,95274.0,95271.0,0.01049637]
[1768669178792,0.01029604,95274.0,95271.0,0.01049637]
[1768669179133,0.01029604,95274.0,95271.0,0.01029637]
[1768669179458,0.01009604,95274.0,95271.0,0.01029637]
[1768669179771,0.01009604,95274.0,95271.0,0.01009637]
[1768669180112,0.00989604,95274.0,95271.0,0.01009637]
[1768669180411,0.00989604,95274.0,95271.0,0.00989637]
[1768669180828,0.00969604,95274.0,95271.0,0.00989637]
[1768669181043,0.00969604,95274.0,95271.0,0.00969637]
[1768669182040,0.00969604,95274.0,95269.0,0.0109694]
[1768669182238,0.00969604,95274.0,95270.0,0.01049648]
[1768669182239,0.01049615,95273.0,95270.0,0.01049648]
[1768669182581,0.00969604,95274.0,95270.0,0.01049648]
[1768669182779,0.00969604,95274.0,95270.0,0.06297876]
[1768669186452,0.01049615,95273.0,95270.0,0.01049648]
[1768669188662,0.00969604,95274.0,95270.0,0.01049648]
[1768669188876,0.00949604,95274.0,95270.0,0.01049648]
[1768669189310,0.00949604,95274.0,95270.0,0.01029648]
[1768669189518,0.01049615,95273.0,95270.0,0.01029648]
[1768669189727,0.00949604,95274.0,95270.0,0.01029648]
[1768669190114,0.00949604,95274.0,95271.0,0.01049637]
[1768669190321,0.00949604,95274.0,95271.0,0.01045108]
[1768669191318,0.00929604,95274.0,95271.0,0.01045108]
[1768669191527,0.00909604,95274.0,95271.0,0.01045108]
[1768669191700,0.00909604,95274.0,95271.0,0.01005108]
[1768669192112,0.00889604,95274.0,95271.0,0.01005108]
[1768669192311,0.00889604,95274.0,95271.0,0.00985108]
[1768669196577,0.00869604,95274.0,95271.0,0.00985108]
[1768669196957,0.00869604,95274.0,95271.0,0.00965108]
[1768669199162,0.00869604,95274.0,95269.0,0.06345232]
[1768669199163,0.01049615,95273.0,95269.0,0.0109694]
[1768669199316,0.06297696,95273.0,95269.0,0.0109694]
[1768669201516,0.06297696,95273.0,95268.0,0.06298003]
[1768669201517,0.01049659,95269.0,95264.0,0.01049714]
[1768669201670,0.01049681,95267.0,95264.0,6.446e-05]
[1768669201853,0.01049725,95263.0,95259.0,0.01049769]
[1768669202220,0.01049725,95263.0,95260.0,0.01049758]
[1768669202425,0.01049725,95263.0,95256.0,0.0001604]
[1768669202426,0.01049736,95262.0,95257.0,0.06298707]
[1768669202640,0.01049736,95262.0,95253.0,0.06760125]
[1768669202641,0.01049747,95261.0,95254.0,0.0104978]
[1768669202844,0.01049747,95261.0,95256.0,0.05249002]
[1768669203069,0.01049758,95260.0,95256.0,0.01049802]
[1768669203280,0.01029758,95260.0,95257.0,0.01049791]
[1768669203614,0.01029758,95260.0,95256.0,0.06298772]
[1768669203615,0.01049769,95259.0,95255.0,0.01049813]
[1768669204648,0.01049791,95257.0,95253.0,0.01099766]
[1768669204854,0.01049802,95256.0,95253.0,0.00049931]
[1768669205136,0.06298827,95256.0,95253.0,0.00049931]
[1768669205274,0.01049802,95256.0,95253.0,0.00049931]
[1768669205689,0.01049802,95256.0,95253.0,0.01099766]
[1768669206266,0.01049791,95257.0,95253.0,0.06348935]
[1768669206574,0.01049791,95257.0,95254.0,0.01049824]
[1768669207366,0.20991763,95276.0,95257.0,0.05248943]
[1768669207571,0.0525345,95262.0,95257.0,0.01049791]
[1768669207785,0.01049747,95261.0,95257.0,0.01049791]
[1768669208002,0.0105446,95262.0,95258.0,0.0104978]
[1768669208175,4.724e-05,95262.0,95259.0,0.01049769]
[1768669208388,4.724e-05,95262.0,95259.0,0.0629861]
[1768669208597,0.13769714,95264.0,95260.0,0.01049758]
[1768669208904,0.13769714,95264.0,95261.0,0.01049747]
[1768669209110,0.01049725,95263.0,95260.0,0.00013888]
[1768669209290,0.05248689,95262.0,95260.0,0.00013888]
[1768669209464,0.01049725,95263.0,95260.0,0.00013888]
[1768669209677,0.05248737,95261.0,95260.0,0.00013888]
[1768669209874,0.01049791,95257.0,95253.0,0.01099766]
[1768669210257,0.01029791,95257.0,95254.0,0.01049824]
[1768669210457,0.01029791,95257.0,95253.0,0.01099766]
[1768669210458,0.01049802,95256.0,95253.0,0.01099766]
[1768669211321,0.01029791,95257.0,95254.0,0.01049824]
[1768669211856,0.06278802,95257.0,95253.0,0.01099766]
[1768669212052,0.01049802,95256.0,95253.0,0.00049931]
[1768669214572,0.01049802,95256.0,95253.0,0.01099766]
[1768669215521,0.01049802,95256.0,95253.0,0.01079766]
[1768669221659,0.01049802,95256.0,95253.0,0.06328942]
[1768669221871,0.01049802,95256.0,95253.0,0.00029931]
[1768669222722,0.06298856,95256.0,95253.0,0.00029931]
[1768669223741,0.05249069,95255.0,95253.0,0.00029931]
[1768669223940,0.01049802,95256.0,95249.0,0.06299275]
[1768669223941,0.01049835,95253.0,95249.0,0.06299275]
[1768669224145,0.01049835,95253.0,95249.0,0.06303999]
[1768669224349,0.01049813,95255.0,95250.0,0.01049868]
[1768669224506,0.01049813,95255.0,95251.0,0.01049857]
[1768669225340,0.01049813,95255.0,95251.0,0.06299093]
[1768669225920,0.01049813,95255.0,95251.0,0.01049857]
[1768669226228,0.01049813,95255.0,95252.0,0.01049846]
[1768669226424,0.01049813,95255.0,95251.0,0.01049857]
[1768669226598,0.01049813,95255.0,95252.0,0.01049846]
[1768669226778,0.01049802,95256.0,95253.0,0.01049835]
[1768669231423,0.00669994,95256.0,95253.0,0.01049835]
[1768669233668,0.5805736,95256.0,95253.0,0.01049835]
[1768669233967,0.5805736,95256.0,95252.0,0.10075705]
[1768669234301,0.5805736,95256.0,95253.0,0.01049835]
[1768669236784,0.5805736,95256.0,95246.0,0.0001604]
[1768669236785,0.57387366,95254.0,95246.0,0.0001604]
[1768669237000,0.57387366,95254.0,95238.0,0.26660255]
[1768669237001,0.57400763,95254.0,95244.0,0.01049934]
[1768669237199,0.00013397,95254.0,95251.0,0.05249233]
[1768669237837,0.00013397,95254.0,95251.0,0.01049857]
[1768669238171,0.00013397,95254.0,95251.0,0.06299143]
[1768669239878,0.00013397,95254.0,95251.0,0.01049857]
[1768669240091,0.1272,95261.0,95259.0,0.05248846]
[1768669240332,0.12725457,95261.0,95252.0,0.56665397]
[1768669240554,0.12725457,95261.0,95258.0,0.0104978]
[1768669240930,0.12725457,95261.0,95259.0,0.05248803]
[1768669241101,5.457e-05,95261.0,95259.0,0.05248803]
[1768669241946,5.457e-05,95261.0,95258.0,0.0104978]
[1768669242288,5.457e-05,95261.0,95260.0,0.05248792]
[1768669246609,5.457e-05,95261.0,95258.0,0.0104978]
[1768669246865,5.457e-05,95261.0,95258.0,0.06298669]
[1768669248821,5.457e-05,95261.0,95258.0,0.06294141]
[1768669250967,5.457e-05,95261.0,95259.0,0.05248837]
[1768669252816,5.457e-05,95261.0,95260.0,0.05248792]
[1768669253635,5.457e-05,95261.0,95260.0,0.05240961]
[1768669253994,5.457e-05,95261.0,95260.0,0.05236433]
[1768669255979,0.59849003,95261.0,95252.0,0.01049846]
[1768669256131,0.58793799,95256.0,95252.0,0.06299038]
[1768669256631,0.01049802,95256.0,95252.0,0.01049846]
[1768669256837,0.01049802,95256.0,95252.0,0.05249229]
[1768669257037,0.01049802,95256.0,95252.0,0.01049846]
[1768669257427,0.01049802,95256.0,95252.0,0.06299075]
[1768669257840,0.01049791,95257.0,95253.0,0.01049835]
[1768669258057,0.01049791,95257.0,95253.0,0.06299006]
[1768669258292,0.01049791,95257.0,95254.0,0.01049824]
[1768669260724,0.01049791,95257.0,95254.0,0.01045296]
[1768669260911,0.01049791,95257.0,95254.0,0.01040768]
[1768669261145,0.0104978,95258.0,95255.0,0.01049813]
[1768669262203,0.179688,95260.0,95255.0,0.01049813]
[1768669262204,0.19018558,95260.0,95255.0,0.01049813]
[1768669262449,0.13769758,95260.0,95256.0,0.01049802]
[1768669262919,0.13769758,95260.0,95256.0,0.06298806]
[1768669263155,0.13769758,95260.0,95256.0,0.01049802]
[1768669263331,0.01049769,95259.0,95255.0,0.01049813]
[1768669264308,0.01049769,95259.0,95256.0,0.01049802]
[1768669267916,0.0104978,95258.0,95254.0,0.01049824]
[1768669268122,0.0104978,95258.0,95255.0,0.01049813]
[1768669271414,0.0104978,95258.0,95254.0,0.01049824]
[1768669271620,0.0104978,95258.0,95255.0,0.01049813]
[1768669273229,0.01049769,95259.0,95255.0,0.01049813]
[1768669273426,0.01049769,95259.0,95256.0,0.01049802]
[1768669273644,0.1272,95260.0,95257.0,0.01049791]
[1768669275772,0.1272,95260.0,95257.0,0.06298708]
[1768669278087,0.1272,95260.0,95258.0,0.05248858]
[1768669279524,0.1272,95260.0,95259.0,0.05248847]
[1768669283904,0.12671808,95260.0,95259.0,0.05248847]
[1768669284870,0.12671808,95260.0,95258.0,0.02833785]
[1768669284871,0.12671808,95260.0,95258.0,0.08082676]
[1768669285210,0.12671808,95260.0,95259.0,0.02833785]
[1768669290285,0.12671808,95260.0,95259.0,0.08082632]
[1768669290476,0.12671808,95260.0,95259.0,0.08082991]
[1768669291348,0.12671808,95260.0,95259.0,0.05248847]
[1768669295119,0.12671808,95260.0,95257.0,0.01049791]
[1768669295324,0.12671808,95260.0,95259.0,0.05248847]
[1768669295763,0.12671808,95260.0,95257.0,0.01049791]
[1768669296385,0.12671808,95260.0,95257.0,0.06298746]
[1768669296590,0.12671808,95260.0,95257.0,0.01049791]
[1768669297084,0.12671808,95260.0,95257.0,0.06298746]
[1768669297303,0.12671808,95260.0,95257.0,0.01049791]
[1768669297749,0.12671808,95260.0,95258.0,0.05248896]
[1768669298999,0.12671808,95260.0,95259.0,0.05248847]
[1768669303489,0.12671808,95260.0,95258.0,0.05248902]
[1768669304032,0.12671808,95260.0,95259.0,0.05248847]
[1768669304228,0.12671808,95260.0,95257.0,0.01049791]
[1768669304229,0.12671808,95260.0,95258.0,0.05248889]
[1768669304450,0.12671808,95260.0,95257.0,0.01049791]
[1768669305827,0.12671808,95260.0,95257.0,0.06298706]
[1768669306815,0.12671808,95260.0,95258.0,0.05248901]
[1768669311670,0.00049928,95266.0,95263.0,0.01049725]
[1768669311883,0.54693256,95265.0,95262.0,0.05248628]
[1768669312087,0.00049928,95266.0,95263.0,0.05248598]
[1768669312539,0.00049928,95266.0,95262.0,0.05248672]
[1768669313147,0.00049928,95266.0,95263.0,0.01049725]
[1768669313580,0.00049928,95266.0,95263.0,0.0629835]
[1768669314344,0.00049928,95266.0,95263.0,0.01049725]
[1768669315697,0.00049928,95266.0,95264.0,0.05248554]
[1768669315925,0.00049928,95266.0,95263.0,0.06298345]
[1768669316141,0.00049928,95266.0,95264.0,0.0524857]
[1768669316347,0.00049928,95266.0,95263.0,0.01049725]
[1768669316552,0.00049928,95266.0,95260.0,0.01049758]
[1768669317095,0.01049714,95264.0,95261.0,0.01049747]
[1768669317413,0.01049714,95264.0,95260.0,0.01049758]
[1768669317609,0.01049725,95263.0,95260.0,0.01049758]
[1768669317852,0.01049725,95263.0,95257.0,0.01049791]
[1768669317853,0.0629851,95261.0,95257.0,0.01049791]
[1768669318008,0.01049747,95261.0,95257.0,0.01049791]
[1768669319018,0.01049758,95260.0,95257.0,0.01049791]
[1768669319245,0.01049758,95260.0,95256.0,0.01049802]
[1768669321429,0.01049758,95260.0,95252.0,0.01049846]
[1768669321430,0.01049648,95270.0,95265.0,0.52120519]
[1768669321577,0.01054609,95270.0,95266.0,0.01049692]
[1768669322392,0.01049736,95262.0,95258.0,0.0104978]
[1768669322801,0.01049769,95259.0,95256.0,0.52120519]
[1768669323005,0.05248737,95261.0,95256.0,0.53170321]
[1768669323175,0.05248737,95261.0,95256.0,0.01049802]
[1768669323524,0.01049747,95261.0,95258.0,0.0104978]
[1768669324332,0.01049736,95262.0,95258.0,0.0104978]
[1768669324540,0.01049736,95262.0,95259.0,0.01049769]
[1768669325035,0.01049747,95261.0,95257.0,0.01049791]
[1768669325245,0.01049736,95262.0,95258.0,0.0104978]
[1768669325393,0.01049725,95263.0,95260.0,0.01049758]
[1768669326387,0.01049692,95266.0,95262.0,0.01049736]
[1768669327056,0.01049703,95265.0,95262.0,0.01049736]
[1768669328686,0.01049703,95265.0,95260.0,0.01049758]
[1768669328687,0.01049714,95264.0,95260.0,0.01049758]
[1768669329289,0.01049725,95263.0,95258.0,0.0104978]
[1768669329471,0.01049736,95262.0,95259.0,0.01049769]
[1768669329673,0.01049725,95263.0,95260.0,0.01049758]
[1768669330549,0.01049736,95262.0,95258.0,0.0104978]
[1768669330719,0.01049736,95262.0,95259.0,0.01049769]
[1768669330921,0.01049725,95263.0,95259.0,0.01049769]
[1768669331369,0.01049736,95262.0,95258.0,0.0104978]
[1768669331659,0.01049747,95261.0,95257.0,0.01049791]
[1768669331805,0.01049747,95261.0,95258.0,0.0104978]
[1768669332001,0.01049725,95263.0,95259.0,0.06298574]
[1768669332450,0.01049736,95262.0,95258.0,0.0104978]
[1768669332854,0.03308756,95262.0,95258.0,0.0104978]
[1768669333422,0.03308756,95262.0,95259.0,0.06298604]
[1768669333626,0.0225902,95262.0,95259.0,0.06298612]
[1768669333804,0.0225902,95261.0,95259.0,0.06298612]
[1768669334009,0.0225902,95262.0,95259.0,0.06298612]
[1768669334274,0.0225902,95261.0,95259.0,0.06298612]
[1768669334575,0.0225902,95262.0,95259.0,0.06298612]
[1768669334754,0.0225902,95261.0,95259.0,0.06298612]
[1768669334959,0.03308756,95262.0,95258.0,0.0104978]
[1768669335169,0.0225902,95261.0,95258.0,0.0104978]
[1768669335367,0.0225902,95261.0,95259.0,0.052488]
[1768669335562,0.0225902,95262.0,95259.0,0.06298569]
[1768669335765,0.0225902,95261.0,95259.0,0.06298569]
[1768669335965,0.0225902,95262.0,95259.0,0.01049769]
[1768669336165,0.03308767,95261.0,95257.0,0.01049791]
[1768669336364,0.01049747,95261.0,95257.0,0.01049791]
[1768669336570,0.03308767,95261.0,95257.0,0.01049791]
[1768669336975,0.03308767,95261.0,95258.0,0.0104978]
[1768669338570,0.0225902,95261.0,95258.0,0.0629868]
[1768669338712,0.01049747,95261.0,95257.0,0.01049791]
[1768669339060,0.03308767,95261.0,95257.0,0.01049791]
[1768669339268,0.01049769,95259.0,95255.0,0.53170332]
[1768669339478,0.01049769,95259.0,95256.0,0.01049802]
[1768669339687,0.08557515,95261.0,95256.0,0.06298797]
[1768669339885,0.06298495,95261.0,95256.0,0.06298797]
[1768669340087,0.08557515,95261.0,95256.0,0.58419316]
[1768669340290,0.06298495,95261.0,95256.0,0.58419316]
[1768669340496,0.08557515,95261.0,95256.0,0.58419316]
[1768669340708,0.06298495,95261.0,95256.0,0.58419316]
[1768669340916,0.08557515,95261.0,95256.0,0.58419316]
[1768669341118,0.06293215,95261.0,95256.0,0.58419316]
[1768669341323,0.08552235,95261.0,95256.0,0.58419316]
[1768669341539,0.06293215,95261.0,95256.0,0.58419316]
[1768669341734,0.03303487,95261.0,95257.0,0.06298744]
[1768669342000,0.03303487,95261.0,95258.0,0.0104978]
[1768669342237,0.01044467,95261.0,95258.0,0.0104978]
[1768669342448,0.03303487,95261.0,95258.0,0.06298681]
[1768669342659,0.01044467,95261.0,95258.0,0.06298681]
[1768669342864,0.0225902,95261.0,95258.0,0.0104978]
[1768669343288,0.0225902,95262.0,95258.0,0.0104978]
[1768669343461,0.0225902,95261.0,95258.0,0.0104978]
[1768669343669,0.0225902,95260.0,95258.0,0.0104978]
[1768669343866,0.01049736,95262.0,95258.0,0.0104978]
[1768669343867,0.0225902,95259.0,95258.0,0.0104978]
[1768669344077,0.0225902,95259.0,95258.0,0.06298629]
[1768669344655,0.0225902,95259.0,95257.0,0.01049791]
[1768669344857,0.0225902,95259.0,95255.0,0.01049813]
[1768669344858,0.01049769,95259.0,95255.0,0.01049813]
[1768669345218,0.01049747,95261.0,95256.0,0.01049802]
[1768669345428,0.03308797,95260.0,95255.0,0.01049813]
[1768669345633,0.02259039,95259.0,95255.0,0.01049813]
[1768669345840,0.01049758,95260.0,95255.0,0.01049813]
[1768669346045,0.03308818,95259.0,95254.0,0.01049824]
[1768669346247,0.01049769,95259.0,95254.0,0.01049824]
[1768669346661,0.0104978,95258.0,95253.0,0.01099767]
[1768669346871,0.02259017,95257.0,95253.0,0.01099767]
[1768669347067,0.0104978,95258.0,95253.0,0.01099767]
[1768669347263,0.03308808,95257.0,95253.0,0.01099767]
[1768669347473,0.01049791,95257.0,95253.0,0.01099767]
[1768669348554,0.03308751,95257.0,95253.0,0.01099767]
[1768669349012,0.01049802,95256.0,95250.0,0.01049857]
[1768669349220,0.01049791,95257.0,95253.0,0.01049835]
[1768669350101,0.0330874,95258.0,95254.0,0.01049824]
[1768669350714,0.0330874,95258.0,95254.0,0.00936491]
[1768669350924,0.0330874,95258.0,95254.0,0.00750072]
[1768669351142,0.0225896,95257.0,95254.0,0.00472482]
[1768669351353,0.0225896,95256.0,95254.0,0.00472482]
[1768669351575,0.0225896,95255.0,95254.0,0.00472482]
[1768669352675,0.0225896,95255.0,95252.0,0.01049846]
[1768669352903,0.01049758,95260.0,95255.0,0.01049813]
[1768669353125,0.03308898,95259.0,95254.0,0.01049824]
[1768669353340,0.02259129,95258.0,95254.0,0.01049824]
[1768669353541,0.02259129,95257.0,95254.0,0.01049824]
[1768669353717,0.02259129,95256.0,95254.0,0.01049824]
[1768669353918,0.02259129,95255.0,95254.0,0.01049824]
[1768669355049,0.02259129,95255.0,95254.0,0.06298947]
[1768669357491,0.01049747,95261.0,95258.0,0.0104978]
[1768669357642,0.01049747,95261.0,95256.0,0.0629876]
[1768669357847,0.01049747,95261.0,95257.0,0.01049791]
[1768669358072,0.01049758,95260.0,95255.0,0.01049813]
[1768669359409,0.01049758,95260.0,95256.0,0.01049802]
[1768669359625,0.01049769,95259.0,95254.0,0.01049824]
[1768669359827,0.01049758,95260.0,95255.0,0.01049813]
[1768669359984,0.01049758,95260.0,95255.0,0.06298881]
[1768669360368,0.01049758,95260.0,95257.0,0.01049791]
[1768669360578,0.01049747,95261.0,95257.0,0.01049791]
[1768669361394,0.01049758,95260.0,95257.0,0.01049791]
[1768669362533,0.01049802,95256.0,95234.0,0.1272]
[1768669362774,0.06298819,95256.0,95237.0,0.52271374]
[1768669363187,0.06298819,95256.0,95249.0,0.05249348]
[1768669364012,0.39165229,95260.0,95256.0,0.01049802]
[1768669364214,0.1272,95260.0,95257.0,0.01049791]
[1768669364809,0.1272,95260.0,95257.0,0.00801044]
[1768669367080,0.1272,95260.0,95257.0,0.0605]
[1768669368720,0.1272,95260.0,95257.0,0.00801044]
[1768669369478,0.02257711,95259.0,95257.0,0.06049989]
[1768669369709,0.02257711,95258.0,95257.0,0.06049989]
[1768669370396,0.02257711,95258.0,95257.0,0.00801044]
[1768669372478,0.02257711,95258.0,95256.0,0.01422647]
[1768669372689,0.02257711,95257.0,95256.0,0.02472449]
[1768669372895,0.02257711,95257.0,95256.0,0.02464055]
[1768669373323,0.02257711,95257.0,95256.0,0.02455661]
[1768669373563,0.02257711,95257.0,95256.0,0.02447267]
[1768669373773,0.02257711,95257.0,95256.0,0.02430479]
[1768669374411,0.02257711,95257.0,95256.0,0.00780457]
[1768669374620,0.02257711,95257.0,95256.0,0.00772063]
[1768669374864,0.02257711,95257.0,95256.0,0.05248971]
[1768669375042,0.02257711,95257.0,95256.0,0.05240576]
[1768669375250,0.02257711,95257.0,95256.0,0.06290378]
[1768669375455,0.02257711,95257.0,95256.0,0.06298815]
[1768669376329,0.02257711,95257.0,95256.0,0.0404076]
[1768669376547,0.02257711,95257.0,95256.0,0.05082168]
[1768669379080,0.02257711,95257.0,95256.0,0.01049802]
[1768669380644,0.02257711,95257.0,95256.0,0.06298815]
[1768669384339,0.02257711,95257.0,95256.0,0.05249013]
[1768669384778,0.02257711,95257.0,95256.0,0.06298815]
[1768669385183,0.02257711,95257.0,95256.0,0.05249013]
[1768669385359,0.02257711,95257.0,95256.0,0.06298815]
[1768669385585,0.02823991,95264.0,95256.0,0.06298815]
[1768669385586,0.02823991,95264.0,95260.0,0.01049758]
[1768669385735,0.02823991,95265.0,95259.0,0.01049769]
[1768669386057,0.02823991,95265.0,95259.0,0.00949978]
[1768669386264,0.02823991,95264.0,95259.0,0.00833395]
[1768669386499,0.02823991,95264.0,95260.0,0.01041364]
[1768669386832,0.02823991,95264.0,95257.0,0.01049791]
[1768669387445,0.02823991,95265.0,95256.0,0.05248958]
[1768669387691,0.02823991,95265.0,95257.0,0.05248957]
[1768669388082,0.02823991,95265.0,95260.0,0.01049758]
[1768669388277,0.02823991,95265.0,95262.0,0.00956571]
[1768669388483,0.02823991,95265.0,95260.0,0.00797455]
[1768669388689,0.02823991,95265.0,95260.0,0.06046195]
[1768669389902,0.15543991,95266.0,95260.0,0.06046195]
[1768669390511,0.15543991,95266.0,95262.0,0.01049736]
[1768669390727,0.02823991,95264.0,95261.0,0.01049747]
[1768669390926,0.02823991,95265.0,95262.0,0.01049736]
[1768669393902,0.02823991,95265.0,95261.0,0.01049747]
[1768669394647,0.02823991,95265.0,95262.0,0.01049736]
[1768669395006,0.02823991,95265.0,95261.0,0.04852956]
[1768669395962,0.02823991,95265.0,95260.0,0.06046235]
[1768669396463,0.02823991,95265.0,95262.0,0.01049736]
[1768669396833,4.961e-05,95270.0,95262.0,0.01049736]
[1768669396834,4.961e-05,95270.0,95269.0,0.03890087]
[1768669396993,0.0001604,95271.0,95269.0,0.03624479]
[1768669397633,0.0225836,95270.0,95269.0,0.03624479]
[1768669397815,0.02254264,95270.0,95268.0,0.06298004]
[1768669398015,0.0001604,95271.0,95268.0,0.06298004]
[1768669398228,0.0001604,95271.0,95269.0,0.05248283]
[1768669398855,0.0001604,95280.0,95275.0,0.01049593]
[1768669399063,0.1272,95278.0,95274.0,0.55228748]
[1768669399273,0.1272,95278.0,95273.0,0.05248027]
[1768669399274,0.0001604,95280.0,95277.0,0.01049571]
[1768669399474,0.0001604,95280.0,95277.0,0.01022156]
[1768669401667,0.0001604,95280.0,95276.0,0.01049582]
[1768669402225,0.0001604,95280.0,95277.0,0.01049571]
[1768669402449,0.0001604,95280.0,95275.0,0.02728535]
[1768669402606,0.0001604,95280.0,95275.0,0.56136383]
[1768669403331,0.0001604,95280.0,95277.0,0.01049571]
[1768669403807,0.0001604,95280.0,95275.0,0.53407848]
[1768669404136,0.0001604,95280.0,95273.0,0.01049615]
[1768669406180,0.0001604,95280.0,95274.0,0.01049604]
[1768669406506,0.0001604,95280.0,95273.0,0.01049615]
[1768669407517,0.0001604,95280.0,95274.0,0.01049604]
[1768669407719,0.0001604,95280.0,95276.0,0.01049582]
[1768669407919,0.0001604,95280.0,95274.0,0.06297608]
[1768669408127,0.0001604,95280.0,95276.0,0.01049582]
[1768669409225,0.0001604,95280.0,95277.0,0.01049571]
[1768669409867,0.02256221,95279.0,95277.0,0.01049571]
[1768669410082,0.02256221,95278.0,95276.0,0.5445743]
[1768669410292,0.0001604,95280.0,95277.0,0.01049571]
[1768669410494,0.02256199,95279.0,95277.0,0.01049571]
[1768669410695,0.02256199,95278.0,95277.0,0.01049571]
[1768669410923,0.45692478,95277.0,95257.0,0.53407848]
[1768669411151,0.45692478,95277.0,95267.0,0.01049681]
[1768669411152,0.03305781,95276.0,95267.0,0.01049681]
[1768669411356,0.03305781,95276.0,95267.0,0.00421899]
[1768669411557,0.03305792,95275.0,95267.0,0.01049681]
[1768669411881,0.03305792,95275.0,95266.0,0.01049692]
[1768669412000,0.03305792,95275.0,95267.0,0.01049681]
[1768669412614,0.02256199,95274.0,95267.0,0.01049681]
[1768669412881,0.02256199,95273.0,95266.0,0.01049692]
[1768669413267,0.01049626,95272.0,95263.0,0.01049725]
[1768669413468,0.03305825,95272.0,95264.0,0.01049714]
[1768669413654,0.03305836,95271.0,95262.0,0.01049736]
[1768669413845,0.0104967,95268.0,95260.0,0.01049758]
[1768669414099,0.03305858,95269.0,95261.0,0.01049747]
[1768669414305,0.02256199,95269.0,95263.0,0.01049725]
[1768669414492,0.02256199,95270.0,95263.0,0.01049725]
[1768669414702,0.02256199,95269.0,95262.0,0.01049736]
[1768669414878,0.02256199,95269.0,95263.0,0.01049725]
[1768669415206,0.02256199,95268.0,95263.0,0.01049725]
[1768669415397,0.02256199,95269.0,95263.0,0.01049725]
[1768669415600,0.02256199,95268.0,95263.0,0.01049725]
[1768669415799,0.02256199,95269.0,95263.0,0.01041331]
[1768669416028,0.02256199,95268.0,95263.0,0.01016147]
[1768669416252,0.02256199,95271.0,95264.0,0.01049714]
[1768669416452,0.02256199,95270.0,95264.0,0.01045186]
[1768669416673,0.02256199,95269.0,95264.0,0.01045186]
[1768669416881,0.02256199,95268.0,95264.0,0.01045186]
[1768669417090,0.02256199,95270.0,95263.0,0.01016147]
[1768669417304,0.02256199,95269.0,95263.0,0.01049725]
[1768669417519,0.02256199,95268.0,95263.0,0.01049725]
[1768669417740,0.02256199,95269.0,95264.0,0.01049714]
[1768669417990,0.02256199,95268.0,95264.0,0.01049714]
[1768669418163,0.02256199,95267.0,95263.0,0.01049725]
[1768669418386,0.02256199,95270.0,95263.0,0.01049725]
[1768669418598,0.02256199,95269.0,95263.0,0.01049725]
[1768669418831,0.02256199,95268.0,95263.0,0.01049725]
[1768669419042,0.02256199,95267.0,95263.0,0.01049725]
[1768669419278,0.02256199,95266.0,95263.0,0.01049725]
[1768669419473,0.02256199,95269.0,95263.0,0.01049725]
[1768669419707,0.02256199,95268.0,95263.0,0.01049725]
[1768669419877,0.02256199,95267.0,95263.0,0.01049725]
[1768669420218,0.02256199,95266.0,95263.0,0.01049725]
[1768669420425,0.02256199,95265.0,95263.0,0.01049725]
[1768669420572,0.02256199,95269.0,95264.0,0.01049714]
[1768669420791,0.02256199,95268.0,95263.0,0.01049725]
[1768669421099,0.02256199,95267.0,95263.0,0.01049725]
[1768669421304,0.02256199,95266.0,95263.0,0.01049725]
[1768669421532,0.02256199,95265.0,95263.0,0.01049725]
[1768669421669,0.02256199,95264.0,95263.0,0.01049725]
[1768669421895,0.03305847,95270.0,95264.0,0.01049714]
[1768669422051,0.02256199,95269.0,95263.0,0.01049725]
[1768669422251,0.02256199,95268.0,95263.0,0.01049725]
[1768669422455,0.02256199,95267.0,95263.0,0.01049725]
[1768669422680,0.01049648,95270.0,95263.0,0.01049725]
[1768669422681,0.02256199,95266.0,95263.0,0.01049725]
[1768669422977,0.02256199,95265.0,95263.0,0.01049725]
[1768669423182,0.02256199,95264.0,95263.0,0.01049725]
[1768669423383,0.02256199,95269.0,95263.0,0.01049725]
[1768669423635,0.02256199,95268.0,95263.0,0.01049725]
[1768669423924,0.01049648,95270.0,95263.0,0.01049725]
[1768669423925,0.02256199,95267.0,95263.0,0.01049725]
[1768669424077,0.01049648,95270.0,95263.0,0.01049725]
[1768669424078,0.02256199,95266.0,95263.0,0.01049725]
[1768669424294,0.02256199,95265.0,95263.0,0.01049725]
[1768669424500,0.02256199,95264.0,95263.0,0.01049725]
[1768669425154,0.02256199,95264.0,95262.0,0.01049736]
[1768669425302,0.02256199,95263.0,95262.0,0.01049736]
[1768669425555,0.02256199,95269.0,95263.0,0.01049725]
[1768669425697,0.02256199,95268.0,95264.0,0.01049714]
[1768669425950,0.02256199,95267.0,95264.0,0.01049714]
[1768669426146,0.02256199,95266.0,95264.0,0.01049714]
[1768669426357,0.02256199,95265.0,95264.0,0.01049714]
[1768669428247,0.02256199,95265.0,95264.0,0.06298286]
[1768669428721,0.02256199,95265.0,95264.0,0.04040551]
[1768669428926,0.02256199,95265.0,95264.0,0.04032157]
[1768669429384,0.02256199,95274.0,95267.0,0.01049681]
[1768669429552,0.02256199,95273.0,95266.0,0.01049692]
[1768669429913,0.01049582,95276.0,95266.0,0.01049692]
[1768669429914,0.02256199,95272.0,95267.0,0.01049681]
[1768669430046,0.02256199,95271.0,95267.0,0.01049681]
[1768669430255,0.02256199,95270.0,95267.0,0.01049681]
[1768669430454,0.02256199,95269.0,95267.0,0.01049681]
[1768669430657,0.02256199,95268.0,95267.0,0.01049681]
[1768669432939,0.02256199,95268.0,95267.0,0.01002321]
[1768669433869,0.02256199,95268.0,95267.0,0.06250728]
[1768669435925,0.00047275,95278.0,95271.0,0.01049637]
[1768669436156,0.01096835,95278.0,95264.0,0.01049714]
[1768669436330,0.01096835,95278.0,95269.0,0.01049659]
[1768669437176,0.01049571,95277.0,95268.0,0.0104967]
[1768669437726,0.01096835,95278.0,95268.0,0.0104967]
[1768669438169,0.01049582,95276.0,95267.0,0.01049681]
[1768669438380,0.01049571,95277.0,95268.0,0.0104967]
[1768669439629,0.01049582,95276.0,95267.0,0.01049681]
[1768669440561,0.01049571,95277.0,95268.0,0.0104967]
[1768669440739,0.01049571,95277.0,95269.0,0.01049659]
[1768669440958,0.01049571,95277.0,95268.0,0.0104967]
[1768669441521,0.01049571,95277.0,95267.0,0.01049681]
[1768669441752,0.01049571,95277.0,95268.0,0.01024487]
[1768669443199,0.01049582,95276.0,95268.0,0.01024487]
[1768669443372,0.01049571,95277.0,95268.0,0.01024487]
[1768669444127,0.01049571,95277.0,95268.0,0.0104967]
[1768669444326,0.01049571,95277.0,95268.0,0.01030222]
[1768669445918,0.01049582,95276.0,95268.0,0.01030222]
[1768669447084,0.01049571,95277.0,95268.0,0.01030222]
[1768669447880,0.033079,95276.0,95268.0,0.01030222]
[1768669448079,0.02258318,95275.0,95268.0,0.01030222]
[1768669448296,0.02258318,95274.0,95268.0,0.01030222]
[1768669448498,0.02258318,95273.0,95268.0,0.01030222]
[1768669448694,0.02258318,95272.0,95268.0,0.0104967]
[1768669449049,0.02258318,95271.0,95268.0,0.0104967]
[1768669449247,0.10104037,95278.0,95268.0,0.0104967]
[1768669449248,0.02258318,95270.0,95268.0,0.0104967]